bitfinex-derivatives/quotes_SOLF0:USTF0_20250114
["timestamp","ask_amount","ask_price","bid_price","bid_amount"]
[1736867659031,13.43360268,188.15,188.1,2.659]
[1736867659425,13.43360268,188.15,188.08,3.2462]
[1736867659720,13.43360268,188.15,188.08,5.9054]
[1736867659926,13.43360268,188.15,188.08,2.6592]
[1736867659927,5.96,188.14,188.08,2.6592]
[1736867660336,5.96,188.14,188.1,2.659]
[1736867660532,5.96,188.14,188.07,13.43360268]
[1736867661732,5.96,188.14,188.12,2.6588]
[1736867663536,13.43360268,188.19,188.07,13.43360268]
[1736867663739,5.96,188.2,188.1,13.43360268]
[1736867663938,5.96,188.2,188.11,5.0942]
[1736867664335,191.0,188.21,188.11,5.0942]
[1736867665141,191.0,188.21,188.16,2.6581]
[1736867665539,191.0,188.21,188.13,13.43360268]
[1736867666248,13.43360268,188.25,188.2,2.6576]
[1736867666440,5.96,188.27,188.2,2.6576]
[1736867671046,5.96,188.27,188.16,13.43360268]
[1736867671250,13.43360268,188.25,188.18,2.6578]
[1736867673152,13.43360268,188.22,188.11,5.0942]
[1736867674255,13.43360268,188.22,188.14,2.6584]
[1736867675155,16.09110268,188.22,188.12,2.6587]
[1736867676153,16.09110268,188.22,188.13,2.6585]
[1736867677652,13.43360268,188.22,188.14,2.6584]
[1736867680853,13.43360268,188.19,188.14,2.6584]
[1736867681062,19.39360268,188.19,188.14,2.6584]
[1736867682058,13.43360268,188.16,188.07,64.3536037]
[1736867682452,2.6584,188.15,188.07,64.3536037]
[1736867682649,13.43360268,188.13,188.06,2.6595]
[1736867682858,13.43360268,188.13,188.04,7.35341573]
[1736867683357,13.43360268,188.13,188.03,3.2446]
[1736867683555,13.43360268,188.13,188.07,2.6594]
[1736867684459,13.43360268,188.13,188.08,2.6592]
[1736867685260,13.43360268,188.13,188.06,2.6595]
[1736867690469,16.09190268,188.16,188.07,2.6594]
[1736867691371,16.09190268,188.16,188.08,2.6592]
[1736867691665,5.96,188.15,188.04,13.43360268]
[1736867691973,5.96,188.15,188.11,2.6588]
[1736867694268,5.96,188.15,188.09,2.6591]
[1736867694469,5.96,188.15,188.04,13.43360268]
[1736867694669,13.43360268,188.13,188.04,13.43360268]
[1736867694867,13.43360268,188.13,188.05,2.6597]
[1736867696169,16.09230268,188.13,188.05,2.6597]
[1736867697972,13.43360268,188.13,188.05,2.6597]
[1736867698462,16.09230268,188.13,188.05,2.6597]
[1736867699269,13.43360268,188.13,188.05,2.6597]
[1736867700475,13.43360268,188.16,188.04,13.43360268]
[1736867700675,5.96,188.15,188.04,13.43360268]
[1736867701275,191.0,188.17,188.1,13.43360268]
[1736867701665,5.96,188.19,188.14,2.6584]
[1736867702072,5.96,188.2,188.14,2.6584]
[1736867702469,191.0,188.27,188.11,3.0948]
[1736867702470,5.96,188.21,188.15,2.6582]
[1736867702676,13.43360268,188.25,188.13,13.43360268]
[1736867702876,16.09020268,188.28,188.18,2.6578]
[1736867703077,5.96,188.27,188.18,2.6578]
[1736867704078,2.6569,188.26,188.16,16.09180268]
[1736867705478,5.96,188.27,188.18,2.6579]
[1736867706373,8.6167,188.27,188.18,2.6579]
[1736867706573,13.43360268,188.25,188.16,2.6581]
[1736867706974,2.6573,188.23,188.13,13.43360268]
[1736867707178,13.43360268,188.22,188.14,2.6584]
[1736867711677,13.43360268,188.22,188.12,4.2382]
[1736867711882,13.43360268,188.19,188.12,1.5796]
[1736867712178,13.43360268,188.22,188.15,2.6582]
[1736867713674,204.43360268,188.25,188.17,2.6579]
[1736867713874,13.43360268,188.22,188.12,1.5796]
[1736867714073,16.09150268,188.19,188.09,2.6591]
[1736867714274,5.94,188.18,188.09,2.6591]
[1736867714576,13.43360268,188.16,188.09,2.6591]
[1736867715879,13.43360268,188.16,188.07,2.6593]
[1736867716675,16.09190268,188.16,188.07,2.6593]
[1736867717680,13.43360268,188.13,188.03,2.6599]
[1736867718386,13.43360268,188.1,188.02,64.37050804]
[1736867718680,19.37360268,188.1,188.01,4.3284]
[1736867720185,22.03280268,188.1,188.01,4.3284]
[1736867720789,19.37360268,188.1,188.01,4.3284]
[1736867722190,22.03270268,188.1,188.01,4.3284]
[1736867722389,19.37360268,188.1,188.02,2.6601]
[1736867723078,13.43360268,188.13,188.03,13.43360268]
[1736867723283,5.94,188.12,188.03,13.43360268]
[1736867724189,13.43360268,188.13,188.06,2.6595]
[1736867724389,5.94,188.14,188.06,2.6595]
[1736867724589,5.94,188.14,188.06,16.09310268]
[1736867725392,5.94,188.14,188.06,13.43360268]
[1736867725592,5.94,188.14,188.03,13.43360268]
[1736867726895,5.94,188.14,188.08,13.43360268]
[1736867727094,191.0,188.16,188.09,5.9509]
[1736867728290,191.0,188.16,188.09,3.2918]
[1736867728596,19.37360268,188.22,188.11,13.43360268]
[1736867728889,196.94,188.23,188.14,13.43360268]
[1736867729084,196.94,188.23,188.15,2.6583]
[1736867729695,196.94,188.23,188.14,13.43360268]
[1736867730998,199.5973,188.23,188.14,2.6584]
[1736867731289,199.5973,188.23,188.11,13.43360268]
[1736867731290,13.43360268,188.22,188.09,3.2918]
[1736867731891,13.43360268,188.19,188.09,3.2918]
[1736867732090,13.43360268,188.19,188.1,2.6589]
[1736867732892,13.43360268,188.19,188.09,3.2918]
[1736867733095,13.43360268,188.16,188.09,3.2918]
[1736867733995,16.09190268,188.16,188.06,2.6595]
[1736867734203,5.94,188.15,188.06,2.6595]
[1736867734392,5.94,188.15,188.04,1.6616]
[1736867734593,13.43360268,188.1,188.03,3.3102]
[1736867734792,13.43360268,188.1,187.99,7.36865583]
[1736867734994,13.43360268,188.07,187.99,7.36865583]
[1736867735190,13.43360268,188.04,187.99,7.36865583]
[1736867735995,16.09360268,188.04,187.94,2.6612]
[1736867737302,13.43360268,188.01,187.92,2.6615]
[1736867737695,13.43360268,188.01,187.93,2.6614]
[1736867738000,13.43360268,188.01,187.91,16.74380268]
[1736867738400,13.43360268,188.01,187.91,3.3102]
[1736867738701,13.43360268,188.01,187.91,16.74380268]
[1736867738901,191.0,188.03,187.91,16.74380268]
[1736867739096,191.0,188.03,187.94,13.43360268]
[1736867739289,5.94,188.05,187.95,21.51511537]
[1736867739699,5.94,188.05,187.92,21.51511537]
[1736867740096,5.94,188.05,187.99,2.6606]
[1736867740495,5.94,188.05,187.92,21.51511537]
[1736867740698,5.94,188.05,187.99,2.6606]
[1736867741596,5.94,188.05,187.95,21.51511537]
[1736867741800,5.94,188.05,188.0,2.6604]
[1736867743003,5.94,188.05,187.95,21.51511537]
[1736867743206,5.94,188.05,187.96,2.6609]
[1736867743399,5.94,188.05,187.91,3.3102]
[1736867743604,21.51511537,188.04,187.91,3.3102]
[1736867743807,21.51511537,188.04,187.95,2.6611]
[1736867744001,8.5999,188.05,187.92,21.51511537]
[1736867744500,5.94,188.05,187.92,21.51511537]
[1736867744706,5.94,188.05,187.95,21.51511537]
[1736867746100,5.94,188.05,187.99,2.6606]
[1736867747106,5.94,188.05,187.92,21.51511537]
[1736867747507,5.94,188.05,187.95,2.661]
[1736867747805,5.94,188.05,187.92,21.51511537]
[1736867748507,5.94,188.05,187.98,2.6606]
[1736867749705,8.5999,188.05,187.92,21.51511537]
[1736867750298,5.94,188.05,187.98,2.6607]
[1736867751106,5.94,188.05,187.92,21.51511537]
[1736867752103,2.66,188.04,187.95,2.6611]
[1736867752305,5.94,188.05,187.92,21.51511537]
[1736867752805,8.5998,188.05,187.95,2.661]
[1736867753406,5.94,188.05,187.92,21.51511537]
[1736867754510,191.0,188.09,187.95,21.51511537]
[1736867754699,21.51511537,188.13,187.92,21.51511537]
[1736867754900,191.0,188.13,187.98,21.51511537]
[1736867755103,191.0,188.13,188.01,21.51511537]
[1736867755406,191.0,188.18,188.04,21.51511537]
[1736867755597,196.94,188.18,188.04,21.51511537]
[1736867756706,196.94,188.18,188.08,2.6593]
[1736867756898,196.94,188.18,188.01,21.51511537]
[1736867757607,199.598,188.18,188.07,2.6594]
[1736867757908,196.94,188.18,188.07,2.6594]
[1736867758410,196.94,188.18,188.01,21.51511537]
[1736867758599,196.94,188.18,188.05,21.51511537]
[1736867760011,196.94,188.18,188.08,2.6592]
[1736867760311,196.94,188.18,188.05,21.51511537]
[1736867761210,2.6583,188.16,188.07,2.6593]
[1736867762714,196.94,188.18,188.02,21.51511537]
[1736867764008,196.94,188.18,188.05,21.51511537]
[1736867764206,191.0,188.18,188.09,2.659]
[1736867764403,5.94,188.17,188.09,2.659]
[1736867765112,191.0,188.18,188.08,21.51511537]
[1736867765312,191.0,188.18,188.09,3.2728]
[1736867765515,5.94,188.22,188.09,4.8767]
[1736867765711,5.94,188.22,188.11,21.51511537]
[1736867765912,5.94,188.25,188.11,21.51511537]
[1736867766313,21.51511537,188.28,188.14,21.51511537]
[1736867766513,5.94,188.27,188.14,21.51511537]
[1736867768209,5.94,188.27,188.19,2.6577]
[1736867768414,5.94,188.29,188.17,21.51511537]
[1736867768615,5.94,188.29,188.18,4.8298]
[1736867769520,5.94,188.29,188.22,2.6573]
[1736867769923,29.58320634,188.31,188.22,2.6573]
[1736867770122,5.94,188.3,188.22,2.6573]
[1736867770525,5.94,188.3,188.2,2.6575]
[1736867770922,5.94,188.3,188.18,4.8298]
[1736867771524,5.94,188.29,188.18,4.8298]
[1736867772326,29.58320634,188.31,188.21,2.6574]
[1736867772536,29.58320634,188.31,188.18,4.8298]
[1736867772537,5.41189097,188.31,188.18,4.8298]
[1736867772729,11.35189097,188.31,188.18,4.8298]
[1736867773023,5.94,188.32,188.18,4.8298]
[1736867774122,5.94,188.32,188.24,2.657]
[1736867774924,5.94,188.32,188.22,2.6573]
[1736867775125,21.51511537,188.31,188.18,4.8298]
[1736867775528,8.596,188.32,188.18,4.8298]
[1736867775728,5.94,188.32,188.18,4.8298]
[1736867776122,5.94,188.32,188.2,21.51511537]
[1736867777028,21.51511537,188.37,188.2,21.51511537]
[1736867777232,5.94,188.36,188.2,21.51511537]
[1736867777526,13.40980724,188.34,188.23,13.40980724]
[1736867778123,204.40980724,188.37,188.23,13.40980724]
[1736867778327,204.40980724,188.37,188.26,13.40980724]
[1736867778328,5.94,188.36,188.26,13.40980724]
[1736867779023,5.94,188.36,188.3,2.6561]
[1736867779424,210.34980724,188.37,188.3,2.6561]
[1736867779625,204.40980724,188.37,188.3,2.6561]
[1736867780131,19.34980724,188.4,188.29,13.40980724]
[1736867780332,13.40980724,188.43,188.32,13.40980724]
[1736867780524,5.94,188.42,188.32,13.40980724]
[1736867780725,19.34980724,188.43,188.32,13.40980724]
[1736867780921,5.4085307,188.44,188.32,13.40980724]
[1736867781125,5.4085307,188.44,188.38,2.655]
[1736867782021,5.94,188.45,188.38,2.655]
[1736867782223,7.954,188.65,188.38,13.40980724]
[1736867782224,99.46,188.64,188.38,13.40980724]
[1736867782427,13.40980724,188.5,188.38,13.40980724]
[1736867782630,19.34980724,188.5,188.39,4.7633]
[1736867782829,19.34980724,188.5,188.43,2.6543]
[1736867783028,19.34980724,188.5,188.39,4.7633]
[1736867783427,5.94,188.5,188.39,4.7633]
[1736867784129,21.41586666,188.54,188.39,4.7633]
[1736867784130,191.0,188.56,188.41,21.41586666]
[1736867784337,5.94,188.55,188.41,21.41586666]
[1736867784532,5.94,188.59,188.49,2.6535]
[1736867785130,8.5922,188.59,188.5,2.6533]
[1736867785330,5.94,188.59,188.44,21.41586666]
[1736867785931,5.94,188.59,188.51,2.6532]
[1736867786131,5.92,188.59,188.51,2.6532]
[1736867787136,5.92,188.59,188.52,2.653]
[1736867790340,27.33586666,188.63,188.56,2.6525]
[1736867790542,27.33586666,188.63,188.49,1.6084]
[1736867791337,27.33586666,188.63,188.48,1.6745]
[1736867791338,21.41586666,188.6,188.48,1.6745]
[1736867791537,21.41586666,188.57,188.48,1.6745]
[1736867791939,2.6526,188.56,188.48,4.3282]
[1736867792135,5.92,188.55,188.48,4.3282]
[1736867792738,5.92,188.55,188.5,2.6533]
[1736867793049,5.92,188.59,188.48,1.6745]
[1736867793243,5.92,188.59,188.5,2.6533]
[1736867793547,5.92,188.59,188.44,21.41586666]
[1736867794344,21.41586666,188.57,188.42,1.6768]
[1736867795250,191.0,188.53,188.42,1.6768]
[1736867795649,191.0,188.53,188.46,2.6539]
[1736867796051,193.6531,188.53,188.42,1.6768]
[1736867796250,191.0,188.53,188.42,1.6768]
[1736867797055,191.0,188.53,188.43,2.6543]
[1736867797256,191.0,188.53,188.42,1.6768]
[1736867797648,191.0,188.53,188.42,4.3312]
[1736867798047,191.0,188.53,188.42,1.6768]
[1736867798252,191.0,188.53,188.45,2.6541]
[1736867798652,191.0,188.53,188.42,1.6768]
[1736867798858,191.0,188.53,188.43,2.6543]
[1736867799060,191.0,188.53,188.42,1.6768]
[1736867799358,191.0,188.53,188.46,2.6539]
[1736867799858,191.0,188.53,188.47,2.6537]
[1736867800254,21.41586666,188.57,188.42,1.6768]
[1736867800454,5.92,188.56,188.44,21.41586666]
[1736867800655,2.6523,188.58,188.44,21.41586666]
[1736867800656,5.92,188.58,188.49,2.6534]
[1736867801056,5.92,188.58,188.5,2.6533]
[1736867801258,5.92,188.58,188.47,21.41586666]
[1736867801855,5.92,188.58,188.51,2.6532]
[1736867802055,5.92,188.58,188.44,21.41586666]
[1736867802859,2.6525,188.57,188.48,2.6536]
[1736867803263,2.6525,188.57,188.44,21.41586666]
[1736867803457,16.03020609,188.57,188.47,2.6537]
[1736867804260,16.03020609,188.57,188.48,2.6536]
[1736867804761,2.6525,188.57,188.48,2.6536]
[1736867805056,5.92,188.58,188.48,2.6536]
[1736867805455,5.92,188.58,188.45,13.37770609]
[1736867805657,5.92,188.58,188.49,2.6534]
[1736867805963,5.92,188.6,188.51,13.37770609]
[1736867806461,5.92,188.6,188.52,2.6531]
[1736867806764,210.29770609,188.62,188.51,13.37770609]
[1736867808263,19.29770609,188.62,188.53,2.6529]
[1736867808659,13.37770609,188.62,188.53,2.6529]
[1736867808962,19.29770609,188.62,188.53,2.6529]
[1736867809957,19.29770609,188.62,188.54,2.6527]
[1736867812165,13.37770609,188.62,188.54,2.6527]
[1736867812362,19.29770609,188.62,188.54,2.6527]
[1736867813464,5.92,188.62,188.54,16.03040609]
[1736867814159,16.02910609,188.65,188.54,16.03040609]
[1736867814360,13.37770609,188.65,188.54,13.37770609]
[1736867814561,5.92,188.64,188.54,13.37770609]
[1736867814758,5.92,188.66,188.57,13.37770609]
[1736867815064,2.6504,188.71,188.6,13.37770609]
[1736867815256,13.37770609,188.71,188.6,13.37770609]
[1736867815662,5.92,188.72,188.6,13.37770609]
[1736867816064,5.92,188.72,188.63,2.6515]
[1736867816360,5.92,188.72,188.63,13.37770609]
[1736867816966,5.92,188.72,188.64,2.6514]
[1736867817666,21.94810609,188.71,188.62,2.6516]
[1736867820466,19.29770609,188.71,188.56,7.36865583]
[1736867820665,13.37770609,188.68,188.57,13.37770609]
[1736867821067,13.37770609,188.68,188.6,2.6519]
[1736867821267,13.37770609,188.68,188.57,13.37770609]
[1736867821463,191.0,188.7,188.6,13.37770609]
[1736867821670,191.0,188.7,188.62,2.6516]
[1736867823578,191.0,188.7,188.6,13.37770609]
[1736867823771,191.0,188.7,188.63,2.6514]
[1736867824371,191.0,188.7,188.58,13.37770609]
[1736867824678,191.0,188.7,188.57,13.37770609]
[1736867825172,193.6507,188.7,188.57,13.37770609]
[1736867825964,191.0,188.7,188.62,2.6516]
[1736867826867,196.92,188.7,188.62,2.6516]
[1736867827068,196.92,188.7,188.6,13.37770609]
[1736867827371,5.92,188.7,188.63,2.6515]
[1736867828173,5.92,188.7,188.61,2.6517]
[1736867828373,13.37770609,188.68,188.57,13.37770609]
[1736867828876,13.37770609,188.68,188.59,2.6521]
[1736867829271,13.37770609,188.68,188.61,2.6518]
[1736867829466,8.5707,188.7,188.61,2.6518]
[1736867832276,16.02860609,188.68,188.59,2.6521]
[1736867834283,2.6511,188.67,188.57,2.6523]
[1736867835182,2.6512,188.66,188.55,16.50260609]
[1736867835475,13.37770609,188.65,188.53,13.37770609]
[1736867835685,13.37770609,188.62,188.51,31.08102332]
[1736867835879,5.92,188.61,188.51,31.08102332]
[1736867836271,5.92,188.61,188.53,2.6529]
[1736867836471,5.92,188.61,188.51,8.97505583]
[1736867836780,5.92,188.61,188.52,2.653]
[1736867838273,5.92,188.61,188.5,67.50785719]
[1736867838585,13.37770609,188.59,188.5,70.16115719]
[1736867839182,2.6528,188.55,188.46,7.36865583]
[1736867839585,2.6528,188.55,188.45,8.92235583]
[1736867840386,13.37770609,188.56,188.46,13.37770609]
[1736867840590,13.37770609,188.59,188.49,13.37770609]
[1736867841284,196.92,188.6,188.52,2.653]
[1736867841578,196.92,188.6,188.5,3.3437]
[1736867841781,196.92,188.6,188.52,13.37770609]
[1736867841986,196.92,188.6,188.53,2.6529]
[1736867843787,196.92,188.6,188.5,3.3437]
[1736867843788,196.92,188.6,188.51,2.6532]
[1736867844692,13.37770609,188.59,188.46,13.37770609]
[1736867845793,13.37770609,188.59,188.49,13.37770609]
[1736867846392,13.37770609,188.59,188.53,2.6529]
[1736867846989,13.37770609,188.59,188.51,2.6532]
[1736867847192,13.37770609,188.59,188.49,13.37770609]
[1736867848295,13.37770609,188.59,188.5,2.6533]
[1736867848493,13.37770609,188.59,188.49,13.37770609]
[1736867848994,13.37770609,188.59,188.52,2.653]
[1736867849292,13.37770609,188.59,188.46,13.37770609]
[1736867849493,2.6524,188.58,188.48,2.6536]
[1736867850993,2.6524,188.58,188.49,2.6534]
[1736867851389,13.37770609,188.56,188.49,2.6534]
[1736867851786,207.02980609,188.6,188.5,2.6533]
[1736867851991,204.37770609,188.6,188.49,13.37770609]
[1736867852288,5.92,188.59,188.49,13.37770609]
[1736867852689,191.0,188.6,188.49,13.37770609]
[1736867854098,191.0,188.6,188.53,2.6529]
[1736867856095,207.02970609,188.6,188.49,13.37770609]
[1736867856396,13.37770609,188.57,188.46,13.37770609]
[1736867856595,13.37770609,188.57,188.49,2.6534]
[1736867856897,191.0,188.6,188.51,13.37770609]
[1736867857297,5.92,188.63,188.56,2.6524]
[1736867857601,13.37770609,188.65,188.54,13.37770609]
[1736867857901,5.92,188.64,188.54,13.37770609]
[1736867858495,5.92,188.64,188.58,2.6522]
[1736867861305,13.37770609,188.65,188.58,2.6522]
[1736867861605,19.29770609,188.65,188.58,2.6522]
[1736867863307,21.94910609,188.65,188.56,2.6524]
[1736867864205,21.94910609,188.65,188.54,13.37770609]
[1736867864206,13.37770609,188.65,188.54,13.37770609]
[1736867864400,13.37770609,188.65,188.59,2.652]
[1736867864401,19.27770609,188.65,188.59,2.652]
[1736867864597,13.37770609,188.65,188.59,2.652]
[1736867866610,5.9,188.66,188.59,2.652]
[1736867867408,2.6511,188.67,188.59,2.652]
[1736867867613,13.37770609,188.65,188.57,2.6523]
[1736867867802,13.37770609,188.65,188.54,13.37770609]
[1736867869309,5.9,188.66,188.52,3.2266]
[1736867869310,13.37770609,188.62,188.52,3.2266]
[1736867869908,16.02950609,188.62,188.53,2.6529]
[1736867870611,13.37770609,188.59,188.51,2.6531]
[1736867871011,5.9,188.58,188.51,2.6531]
[1736867872405,13.37770609,188.56,188.46,32.73362332]
[1736867872612,13.37770609,188.53,188.46,29.47462332]
[1736867873206,13.37770609,188.53,188.43,7.36865583]
[1736867874216,13.37770609,188.53,188.45,2.654]
[1736867875412,16.03070609,188.53,188.42,2.6544]
[1736867875715,13.37770609,188.53,188.42,2.6544]
[1736867876115,2.6532,188.52,188.43,2.6543]
[1736867876507,13.37770609,188.53,188.41,4.9145]
[1736867877814,13.37770609,188.53,188.4,7.36865583]
[1736867877815,13.37770609,188.46,188.4,7.36865583]
[1736867878115,5.9,188.45,188.4,7.36865583]
[1736867878316,13.37770609,188.43,188.4,7.36865583]
[1736867878819,13.37770609,188.43,188.37,2.6552]
[1736867880211,13.37770609,188.43,188.35,4.2703]
[1736867880411,13.37770609,188.43,188.33,1.6648]
[1736867880813,13.37770609,188.43,188.25,94.32386996]
[1736867880814,13.37770609,188.37,188.28,22.10596749]
[1736867881012,13.37770609,188.34,188.26,29.47462332]
[1736867881220,13.37770609,188.31,188.26,29.47462332]
[1736867881617,16.03380609,188.31,188.26,29.47462332]
[1736867881922,16.03380609,188.31,188.23,2.6571]
[1736867882218,13.37770609,188.28,188.18,32.74162332]
[1736867882413,19.27770609,188.28,188.21,2.6574]
[1736867882615,5.9,188.28,188.19,13.37770609]
[1736867882919,13.37770609,188.27,188.21,2.6575]
[1736867883217,13.37770609,188.27,188.15,3.3204]
[1736867883419,13.37770609,188.27,188.19,2.6576]
[1736867883919,13.37770609,188.27,188.22,2.6573]
[1736867884115,13.37770609,188.27,188.1,77.71710528]
[1736867884116,13.37770609,188.24,188.1,64.33939919]
[1736867884311,13.37770609,188.24,188.1,77.71710528]
[1736867884513,13.37770609,188.21,188.13,2.6586]
[1736867884719,13.37770609,188.18,188.13,2.6586]
[1736867885316,13.37770609,188.18,188.1,64.33939919]
[1736867885927,13.37770609,188.18,188.14,2.6585]
[1736867886418,13.37770609,188.18,188.1,64.33939919]
[1736867886920,13.37770609,188.18,188.12,2.6587]
[1736867887119,13.37770609,188.18,188.1,64.33939919]
[1736867887620,13.37770609,188.12,188.06,2.6595]
[1736867887817,19.29770609,188.12,188.06,2.6595]
[1736867888215,13.37770609,188.12,188.06,2.6595]
[1736867888522,13.37770609,188.12,188.01,1.5732]
[1736867890119,13.37770609,188.12,188.08,2.6592]
[1736867890416,13.37770609,188.12,188.01,1.5732]
[1736867890624,13.37770609,188.12,188.01,14.95090609]
[1736867891821,5.92,188.15,188.13,2.6586]
[1736867892919,191.0,188.18,188.07,13.37770609]
[1736867893122,5.92,188.23,188.13,13.37770609]
[1736867893519,5.92,188.23,188.1,13.37770609]
[1736867894424,13.37770609,188.21,188.1,13.37770609]
[1736867894623,13.37770609,188.18,188.07,13.37770609]
[1736867895430,13.37770609,188.18,188.04,13.37770609]
[1736867895621,13.37770609,188.15,188.04,13.37770609]
[1736867895824,19.29770609,188.15,188.04,13.37770609]
[1736867896429,19.29770609,188.15,188.02,1.5601]
[1736867896621,13.37770609,188.12,188.02,1.5601]
[1736867896927,19.29770609,188.15,188.04,13.37770609]
[1736867897130,5.92,188.15,188.04,13.37770609]
[1736867897423,5.92,188.15,188.07,13.37770609]
[1736867897622,13.37770609,188.18,188.07,13.37770609]
[1736867897823,5.92,188.19,188.1,13.37770609]
[1736867898122,5.92,188.19,188.12,2.6587]
[1736867898324,5.92,188.19,188.1,13.37770609]
[1736867898721,5.92,188.19,188.15,2.6583]
[1736867898930,5.92,188.19,188.1,13.37770609]
[1736867899133,5.92,188.19,188.13,13.37770609]
[1736867899428,5.92,188.19,188.11,3.2399]
[1736867899616,5.92,188.19,188.12,1.5809]
[1736867900226,5.92,188.19,188.17,2.658]
[1736867900428,5.92,188.23,188.12,1.5809]
[1736867901321,5.92,188.23,188.15,2.6583]
[1736867901523,27.40115987,188.23,188.15,2.6583]
[1736867901923,191.0,188.19,187.98,5.3213]
[1736867902228,21.48115987,188.14,188.02,3.2456]
[1736867902527,21.48115987,188.11,188.02,3.2456]
[1736867902718,21.48115987,188.11,188.02,1.6705]
[1736867903429,5.92,188.13,188.02,1.6705]
[1736867903625,5.92,188.13,188.08,2.6593]
[1736867904121,5.92,188.13,188.02,1.6705]
[1736867905225,5.92,188.13,188.08,2.6592]
[1736867905426,5.92,188.13,188.02,1.6705]
[1736867906521,5.92,188.13,188.05,2.6597]
[1736867906820,5.92,188.13,188.02,1.6705]
[1736867907227,5.92,188.13,188.08,2.6593]
[1736867908573,5.92,188.13,188.02,1.6705]
[1736867908863,5.92,188.13,188.06,2.6595]
[1736867909254,5.92,188.13,188.07,2.6594]
[1736867912262,21.48115987,188.08,187.99,1.7077]
[1736867913151,21.48115987,188.08,188.03,2.6599]
[1736867913656,5.92,188.08,188.04,2.6598]
[1736867913959,5.92,188.08,187.99,1.7077]
[1736867914164,5.92,188.11,188.08,2.6593]
[1736867914556,5.92,188.11,188.0,21.48115987]
[1736867914959,5.92,188.11,188.0,28.8498157]
[1736867915144,5.92,188.11,188.0,7.36865583]
[1736867915348,27.40115987,188.11,188.0,7.36865583]
[1736867915647,27.40115987,188.11,187.99,1.7077]
[1736867916836,21.48115987,188.08,187.99,1.7077]
[1736867917238,21.48115987,188.08,187.97,29.47462332]
[1736867917743,191.0,188.07,187.96,9.00355583]
[1736867918043,191.0,188.07,187.96,7.36865583]
[1736867918241,191.0,188.07,188.0,2.6604]
[1736867919034,191.0,188.06,187.98,2.6607]
[1736867919239,191.0,188.04,187.98,2.6607]
[1736867919439,5.92,188.03,187.98,2.6607]
[1736867920341,5.92,188.03,187.99,2.6605]
[1736867920541,5.92,188.03,187.94,29.47462332]
[1736867920742,5.92,188.03,187.94,7.36865583]
[1736867921640,5.92,188.03,187.94,12.09305476]
[1736867922547,5.92,188.03,187.99,2.6605]
[1736867922742,5.92,188.03,187.93,10.64625583]
[1736867923337,13.45638413,188.02,187.94,29.47462332]
[1736867923741,5.92,188.03,187.94,29.47462332]
[1736867924043,5.92,188.03,188.0,2.6603]
[1736867925042,5.92,188.08,187.97,13.45638413]
[1736867925750,5.92,188.08,187.98,4.71913517]
[1736867926446,5.92,188.08,187.97,13.45638413]
[1736867926945,5.92,188.09,188.0,13.45638413]
[1736867927341,5.92,188.09,188.06,2.6596]
[1736867927547,191.0,188.13,188.06,2.6596]
[1736867927741,5.92,188.11,188.06,2.6596]
[1736867928241,191.0,188.13,188.0,1.5629]
[1736867928444,191.0,188.13,188.02,21.50718965]
[1736867928643,212.50718965,188.13,188.03,3.1982]
[1736867929042,212.50718965,188.13,188.04,2.6598]
[1736867929244,212.50718965,188.13,188.03,3.1982]
[1736867929942,191.0,188.13,188.03,3.1982]
[1736867930147,5.92,188.14,188.03,3.1982]
[1736867930547,5.92,188.14,188.09,2.6591]
[1736867931848,5.92,188.14,188.03,3.1982]
[1736867932048,5.92,188.14,188.1,2.6589]
[1736867933348,196.92,188.17,188.05,21.50718965]
[1736867936049,196.92,188.17,188.13,2.6585]
[1736867936457,196.92,188.17,188.05,21.50718965]
[1736867936964,218.42718965,188.17,188.08,2.6592]